bitfinex/quotes_BTCUSD_20251230
["timestamp","ask_amount","ask_price","bid_price","bid_amount"]
[1767055322141,0.01072942,87142.0,87131.0,0.08751]
[1767055322352,0.01152,87143.0,87131.0,0.08751]
[1767055322576,0.01072843,87142.0,87131.0,0.08751]
[1767055322802,0.02299539,87143.0,87131.0,0.08751]
[1767055323009,0.0107284,87142.0,87131.0,0.08751]
[1767055323236,0.02299539,87143.0,87131.0,0.08751]
[1767055323469,0.01072758,87142.0,87131.0,0.08751]
[1767055323666,0.02299539,87143.0,87131.0,0.08751]
[1767055323902,0.0107276,87142.0,87131.0,0.08751]
[1767055324113,0.01147578,87140.0,87131.0,0.08015219]
[1767055324311,0.01147591,87139.0,87131.0,0.08015219]
[1767055326031,0.01147618,87137.0,87131.0,0.07960319]
[1767055326274,0.01147631,87136.0,87131.0,0.07960319]
[1767055326479,0.01147631,87136.0,87124.0,5.787e-05]
[1767055326480,0.01147657,87134.0,87124.0,5.787e-05]
[1767055326686,0.5223487,87134.0,87124.0,5.787e-05]
[1767055327022,0.0114767,87133.0,87124.0,5.787e-05]
[1767055327423,0.53382527,87134.0,87124.0,5.787e-05]
[1767055328025,0.5223487,87134.0,87124.0,5.787e-05]
[1767055332202,0.53382527,87134.0,87124.0,5.787e-05]
[1767055332436,0.5223487,87134.0,87124.0,5.787e-05]
[1767055332614,0.53382527,87134.0,87124.0,5.787e-05]
[1767055333017,0.0114767,87133.0,87124.0,5.787e-05]
[1767055333214,0.01147697,87131.0,87124.0,5.787e-05]
[1767055333432,0.01147749,87127.0,87124.0,5.787e-05]
[1767055333900,0.06886539,87127.0,87124.0,5.787e-05]
[1767055334616,0.01147749,87127.0,87124.0,5.787e-05]
[1767055335088,0.06886508,87127.0,87124.0,5.787e-05]
[1767055336427,0.01147749,87127.0,87124.0,5.787e-05]
[1767055337424,0.06886524,87127.0,87124.0,5.787e-05]
[1767055337826,0.0573888,87125.0,87124.0,5.787e-05]
[1767055338345,0.05738875,87126.0,87124.0,5.787e-05]
[1767055345862,0.05683975,87126.0,87124.0,5.787e-05]
[1767055346484,0.06886524,87127.0,87124.0,5.787e-05]
[1767055347405,0.06886536,87127.0,87124.0,5.787e-05]
[1767055347630,0.06886516,87127.0,87124.0,5.787e-05]
[1767055348844,0.01147749,87127.0,87124.0,5.787e-05]
[1767055349853,0.01147736,87128.0,87124.0,5.787e-05]
[1767055350094,0.01147749,87127.0,87124.0,5.787e-05]
[1767055350232,0.01147736,87128.0,87124.0,5.787e-05]
[1767055350431,0.01147749,87127.0,87124.0,5.787e-05]
[1767055350851,0.01152,87129.0,87124.0,5.787e-05]
[1767055351057,0.02299723,87129.0,87124.0,5.787e-05]
[1767055351396,0.01147657,87134.0,87124.0,5.787e-05]
[1767055351590,0.01147697,87131.0,87124.0,5.787e-05]
[1767055352201,0.02219818,87130.0,87124.0,5.787e-05]
[1767055352370,0.0114771,87130.0,87124.0,5.787e-05]
[1767055352570,0.01147723,87129.0,87124.0,5.787e-05]
[1767055352792,0.0114771,87130.0,87124.0,5.787e-05]
[1767055353189,0.01147657,87134.0,87130.0,0.00055]
[1767055353441,0.01147697,87131.0,87124.0,5.787e-05]
[1767055353634,0.0229967,87133.0,87124.0,5.787e-05]
[1767055353813,0.01072219,87132.0,87124.0,5.787e-05]
[1767055354132,0.01147657,87134.0,87124.0,5.787e-05]
[1767055354358,0.02224353,87133.0,87124.0,5.787e-05]
[1767055354579,0.02224353,87133.0,87110.0,0.5223487]
[1767055354580,0.01147763,87126.0,87109.0,0.0001463]
[1767055354743,0.01153548,87126.0,87111.0,0.01152]
[1767055355104,0.01147776,87125.0,87111.0,0.01152]
[1767055355304,0.01147789,87124.0,87111.0,0.01152]
[1767055355510,0.01147776,87125.0,87111.0,0.01152]
[1767055355910,5.785e-05,87126.0,87125.0,5.7e-05]
[1767055356318,5.785e-05,87126.0,87114.0,0.01147921]
[1767055356517,5.785e-05,87126.0,87115.0,0.01147907]
[1767055357194,5.785e-05,87126.0,87114.0,0.01147921]
[1767055358021,5.785e-05,87126.0,87111.0,0.06891793]
[1767055358221,5.785e-05,87126.0,87112.0,0.01147947]
[1767055359042,0.01153548,87126.0,87111.0,0.0229996]
[1767055359247,0.01147776,87125.0,87111.0,0.01152]
[1767055359449,0.01147776,87125.0,87111.0,0.0229996]
[1767055359682,0.01153548,87126.0,87111.0,0.0229996]
[1767055360079,5.785e-05,87126.0,87112.0,0.01147947]
[1767055360293,5.785e-05,87126.0,87111.0,0.0229996]
[1767055360496,0.01147776,87125.0,87111.0,0.01152]
[1767055360646,0.01147776,87125.0,87111.0,0.0229996]
[1767055360847,0.01153548,87126.0,87111.0,0.0229996]
[1767055361569,0.01153548,87126.0,87111.0,0.01152]
[1767055361768,0.05738578,87130.0,87112.0,0.14173]
[1767055361972,0.01073239,87129.0,87114.0,0.01147921]
[1767055362218,0.01073239,87128.0,87116.0,0.01147894]
[1767055362359,0.01073239,87127.0,87114.0,0.01147921]
[1767055362566,0.01073239,87126.0,87115.0,0.01147907]
[1767055362772,0.5453458,87130.0,87116.0,0.01147894]
[1767055362977,0.01073469,87129.0,87117.0,0.01147881]
[1767055363177,0.5338687,87130.0,87117.0,0.01147881]
[1767055363178,0.01073469,87128.0,87117.0,0.01147881]
[1767055363370,0.01073469,87127.0,87119.0,0.01147855]
[1767055363763,0.01073469,87126.0,87112.0,8.68e-05]
[1767055363929,0.001099,87119.0,87112.0,8.68e-05]
[1767055364157,0.57973956,87122.0,87112.0,8.68e-05]
[1767055364361,0.02221515,87121.0,87112.0,8.68e-05]
[1767055364509,0.01147828,87121.0,87112.0,8.68e-05]
[1767055364719,0.53382685,87122.0,87112.0,8.68e-05]
[1767055364945,0.01073685,87121.0,87112.0,8.68e-05]
[1767055365145,0.53382685,87122.0,87112.0,8.68e-05]
[1767055365457,0.02221452,87121.0,87112.0,8.68e-05]
[1767055365598,0.01147828,87121.0,87112.0,8.68e-05]
[1767055368164,0.53382685,87122.0,87112.0,8.68e-05]
[1767055368690,0.01147842,87120.0,87112.0,8.68e-05]
[1767055368822,0.01147828,87121.0,87112.0,8.68e-05]
[1767055369406,0.06890765,87127.0,87112.0,8.68e-05]
[1767055369609,0.01147776,87125.0,87112.0,8.68e-05]
[1767055369812,0.01073466,87124.0,87112.0,8.68e-05]
[1767055370012,0.01073466,87123.0,87112.0,8.68e-05]
[1767055370269,0.01073466,87122.0,87112.0,8.68e-05]
[1767055370471,0.01147763,87126.0,87112.0,8.68e-05]
[1767055370667,0.01073441,87125.0,87112.0,8.68e-05]
[1767055370814,0.01073441,87124.0,87112.0,0.01156627]
[1767055371027,0.01073441,87123.0,87112.0,0.01156627]
[1767055371216,0.01073441,87122.0,87112.0,0.01156627]
[1767055371440,0.01147763,87126.0,87112.0,0.01156627]
[1767055371616,0.02221196,87125.0,87112.0,8.68e-05]
[1767055371954,0.01152,87127.0,87112.0,0.01156627]
[1767055372137,0.01152,87127.0,87113.0,0.05739671]
[1767055373665,0.01152,87127.0,87116.0,0.01147894]
[1767055374009,0.01152,87127.0,87114.0,0.01147921]
[1767055376715,0.01152,87127.0,87115.0,0.01147907]
[1767055377784,0.01147723,87129.0,87115.0,0.01147907]
[1767055378622,0.01147723,87129.0,87114.0,0.01147921]
[1767055379618,0.01147736,87128.0,87114.0,0.01147921]
[1767055380214,0.01147736,87128.0,87113.0,0.01147934]
[1767055380395,0.01147749,87127.0,87112.0,0.01156627]
[1767055380718,0.01147749,87127.0,87112.0,8.68e-05]
[1767055381041,0.01147736,87128.0,87113.0,0.01147934]
[1767055381306,0.01147736,87128.0,87114.0,0.01147921]
[1767055381860,0.01147749,87127.0,87113.0,0.01147934]
[1767055382082,0.01147802,87123.0,87112.0,8.68e-05]
[1767055382397,0.01147789,87124.0,87112.0,8.68e-05]
[1767055382605,0.01147802,87123.0,87113.0,0.01152]
[1767055383887,0.01147763,87126.0,87113.0,0.01152]
[1767055384119,0.01073448,87125.0,87113.0,0.01152]
[1767055384310,0.01073448,87124.0,87113.0,0.01152]
[1767055385334,0.01073448,87124.0,87112.0,8.68e-05]
[1767055385550,0.01073448,87124.0,87113.0,0.01152]
[1767055386703,0.01073448,87124.0,87112.0,8.68e-05]
[1767055386902,0.01073448,87124.0,87113.0,0.01152]
[1767055387148,0.01073448,87123.0,87113.0,0.01152]
[1767055387319,0.01073448,87122.0,87113.0,0.01152]
[1767055387533,0.01147789,87124.0,87113.0,0.01152]
[1767055387740,0.0002926,87447.0,87113.0,0.01147934]
[1767055387741,0.01073612,87123.0,87113.0,0.01147934]
[1767055387905,0.01073612,87122.0,87113.0,0.01147934]
[1767055388102,0.01147749,87127.0,87114.0,0.01152]
[1767055388302,0.01073637,87126.0,87114.0,0.01152]
[1767055388528,0.01073637,87125.0,87114.0,0.01152]
[1767055388730,0.01073637,87124.0,87114.0,0.01152]
[1767055388956,0.01073637,87123.0,87114.0,0.01152]
[1767055389111,0.01073637,87122.0,87114.0,0.01152]
[1767055389312,0.01147763,87126.0,87114.0,0.01152]
[1767055389550,0.01073679,87125.0,87114.0,0.01152]
[1767055389898,0.01073679,87124.0,87114.0,0.01152]
[1767055390064,0.01073679,87123.0,87114.0,0.01152]
[1767055390378,0.01073679,87122.0,87114.0,0.01152]
[1767055390574,0.01147763,87126.0,87114.0,0.01152]
[1767055390774,0.01073723,87125.0,87114.0,0.01152]
[1767055390978,0.01073723,87124.0,87114.0,0.01152]
[1767055391184,0.01073723,87123.0,87114.0,0.01152]
[1767055391364,0.01073723,87122.0,87114.0,0.01152]
[1767055391543,0.01147776,87125.0,87114.0,0.01152]
[1767055391764,0.01073752,87124.0,87114.0,0.01152]
[1767055391962,0.01073752,87123.0,87114.0,0.01152]
[1767055392220,0.01073752,87122.0,87114.0,0.01152]
[1767055392504,0.01147749,87127.0,87114.0,0.01152]
[1767055392679,0.01073846,87126.0,87114.0,0.01152]
[1767055393035,0.01073846,87125.0,87114.0,0.02299921]
[1767055393188,0.01073846,87124.0,87114.0,0.01152]
[1767055393390,0.01073846,87123.0,87114.0,0.01152]
[1767055393587,0.01073846,87122.0,87114.0,0.01152]
[1767055393793,0.01073846,87121.0,87114.0,0.01152]
[1767055393969,0.01147749,87127.0,87114.0,0.01152]
[1767055394208,0.0681283,87126.0,87114.0,0.01152]
[1767055394409,0.02221784,87125.0,87114.0,0.01152]
[1767055394610,0.01074008,87124.0,87114.0,0.01152]
[1767055395005,0.2920134,87140.0,87115.0,0.01147907]
[1767055395201,0.0001463,87140.0,87125.0,0.01147776]
[1767055395392,0.0001463,87140.0,87127.0,0.01147749]
[1767055395535,0.0001463,87140.0,87128.0,0.01147736]
[1767055395732,0.0001463,87140.0,87127.0,0.01147749]
[1767055395961,0.0001463,87140.0,87128.0,0.01147736]
[1767055396159,0.0309153,87154.0,87126.0,0.07948509]
[1767055396160,0.01152,87147.0,87131.0,0.01147697]
[1767055396318,0.01152,87147.0,87133.0,0.0114767]
[1767055396523,0.02299486,87147.0,87133.0,0.0114767]
[1767055396722,0.01147499,87146.0,87132.0,0.01147683]
[1767055396923,0.01147499,87146.0,87131.0,0.01147697]
[1767055397125,0.01147552,87142.0,87126.0,0.02299763]
[1767055397361,0.01147591,87139.0,87126.0,0.01152]
[1767055397762,0.01147591,87139.0,87123.0,0.01147802]
[1767055397763,0.01147591,87139.0,87122.0,0.01147815]
[1767055398014,0.01147644,87135.0,87127.0,0.00064]
[1767055398196,0.01147644,87135.0,87118.0,0.06901826]
[1767055398197,0.01147644,87135.0,87123.0,0.01152]
[1767055398392,0.01147657,87134.0,87124.0,0.01152]
[1767055398595,0.0114767,87133.0,87124.0,0.01152]
[1767055399215,0.06885672,87138.0,87124.0,0.01152]
[1767055399479,0.01147618,87137.0,87124.0,0.01152]
[1767055399707,0.01147644,87135.0,87124.0,0.01152]
[1767055400269,0.01147631,87136.0,87124.0,0.01152]
[1767055400959,0.01147618,87137.0,87124.0,0.01152]
[1767055401568,0.01147631,87136.0,87124.0,0.01152]
[1767055401789,0.01147618,87137.0,87124.0,0.01152]
[1767055401985,0.01147644,87135.0,87124.0,0.01152]
[1767055402393,0.01147618,87137.0,87124.0,0.01152]
[1767055403508,0.01147631,87136.0,87124.0,0.01152]
[1767055403706,0.01147618,87137.0,87124.0,0.01152]
[1767055404135,0.01147604,87138.0,87124.0,0.01152]
[1767055404507,0.01147591,87139.0,87124.0,0.01152]
[1767055404932,0.01147604,87138.0,87124.0,0.01152]
[1767055405145,0.01147591,87139.0,87124.0,0.02299789]
[1767055405396,0.01147618,87137.0,87124.0,0.01152]
[1767055406304,0.01147631,87136.0,87124.0,0.01152]
[1767055406651,0.01147618,87137.0,87124.0,0.01152]
[1767055407206,0.01147631,87136.0,87124.0,0.01152]
[1767055408507,0.01147618,87137.0,87124.0,0.01152]
[1767055409111,0.01147631,87136.0,87124.0,0.01152]
[1767055409699,0.06885803,87136.0,87124.0,0.01152]
[1767055410041,0.0114767,87133.0,87124.0,0.00087672]
[1767055410243,0.0114767,87133.0,87119.0,0.01147855]
[1767055410399,0.01147697,87131.0,87118.0,0.0001463]
[1767055410742,0.01147644,87135.0,87119.0,0.01152]
[1767055410900,0.01147644,87135.0,87120.0,0.01147842]
[1767055411103,0.01147644,87135.0,87120.0,0.01152]
[1767055411302,0.06885797,87136.0,87121.0,0.01147828]
[1767055411303,0.01147631,87136.0,87121.0,0.01147828]
[1767055411727,0.06890041,87138.0,87121.0,0.01147828]
[1767055411728,0.06890031,87138.0,87121.0,0.01147828]
[1767055411933,0.01147618,87137.0,87121.0,0.01147828]
[1767055412111,0.01147618,87137.0,87122.0,0.01147815]
[1767055412649,0.01147618,87137.0,87123.0,0.01147802]
[1767055413249,0.01152,87138.0,87124.0,0.01147789]
[1767055413597,0.02299604,87138.0,87123.0,0.01147802]
[1767055413798,0.01147618,87137.0,87123.0,0.01147802]
[1767055414860,0.02299604,87138.0,87124.0,0.01147789]
[1767055415299,0.01152,87138.0,87126.0,0.01147763]
[1767055415901,0.01152,87138.0,87127.0,0.01147749]
[1767055416984,0.01152,87138.0,87126.0,0.01147763]
[1767055417390,0.01152,87138.0,87123.0,0.01147802]
[1767055418019,0.01147618,87137.0,87122.0,0.01147815]
[1767055418231,0.02299604,87138.0,87124.0,0.01147789]
[1767055418440,0.01152,87138.0,87124.0,0.01147789]
[1767055418739,0.01152,87138.0,87125.0,0.01147776]
[1767055418903,0.01152,87138.0,87126.0,0.01147763]
[1767055419285,0.01152,87138.0,87125.0,0.01147776]
[1767055420142,0.01152,87138.0,87126.0,0.01147763]
[1767055420642,0.01152,87138.0,87125.0,0.01147776]
[1767055420846,0.01152,87138.0,87123.0,0.01147802]
[1767055421143,0.02299604,87138.0,87124.0,0.01147789]
[1767055421347,0.02299604,87138.0,87123.0,0.01147802]
[1767055422297,0.01073521,87137.0,87124.0,0.01147789]
[1767055422516,0.01152,87138.0,87124.0,0.01147789]
[1767055422722,0.01073543,87137.0,87124.0,0.01147789]
[1767055422943,0.01152,87138.0,87124.0,0.01147789]
[1767055423183,0.01073544,87137.0,87124.0,0.01147789]
[1767055423354,0.01073544,87136.0,87124.0,0.01147789]
[1767055423561,0.01152,87138.0,87125.0,0.01147776]
[1767055423771,0.01073858,87137.0,87125.0,0.01147776]
[1767055423933,0.01073858,87136.0,87125.0,0.01147776]
[1767055424136,0.01152,87138.0,87125.0,0.01147776]
[1767055424336,0.01073861,87137.0,87125.0,0.01147776]
[1767055424555,0.01073861,87136.0,87125.0,0.01147776]
[1767055424877,0.01073861,87135.0,87126.0,0.01147763]
[1767055425073,0.01152,87138.0,87126.0,0.01147763]
[1767055425253,0.01074395,87137.0,87126.0,0.01147763]
[1767055425461,0.01074395,87136.0,87126.0,0.01147763]
[1767055425687,0.01074395,87135.0,87127.0,0.01147749]
[1767055425857,0.01074395,87134.0,87127.0,0.01147749]
[1767055426065,0.01152,87138.0,87134.0,0.000549]
[1767055426400,0.01152,87138.0,87129.0,0.01147723]
[1767055426906,0.01152,87138.0,87125.0,0.01147776]
[1767055427104,0.01152,87138.0,87126.0,0.01147763]
[1767055427301,0.01152,87138.0,87123.0,0.01147802]
[1767055427302,0.01152,87138.0,87123.0,0.06886752]
[1767055427679,0.02299604,87138.0,87124.0,0.01147789]
[1767055427885,0.01152,87138.0,87126.0,0.01147763]
[1767055428831,0.01152,87138.0,87127.0,0.01147749]
[1767055429042,0.01152,87138.0,87128.0,0.01147736]
[1767055429543,0.01152,87138.0,87129.0,0.01147723]
[1767055429755,0.01152,87138.0,87128.0,0.01147736]
[1767055429972,0.01152,87138.0,87130.0,0.0114771]
[1767055430180,0.01152,87139.0,87130.0,0.0344313]
[1767055430384,0.01152,87139.0,87129.0,0.01147723]
[1767055431152,0.01152,87139.0,87130.0,0.0114771]
[1767055431555,0.01152,87139.0,87129.0,0.01147723]
[1767055431776,0.01152,87139.0,87126.0,0.01147763]
[1767055432158,0.01152,87139.0,87125.0,0.05738868]
[1767055432358,0.01152,87139.0,87126.0,0.01147763]
[1767055432770,0.01152,87139.0,87127.0,0.01147749]
[1767055432922,0.01152,87139.0,87128.0,0.01147736]
[1767055433360,0.01152,87139.0,87127.0,0.01147749]
[1767055433563,0.01152,87139.0,87128.0,0.01147736]
[1767055433861,0.01152,87139.0,87127.0,0.01147749]
[1767055434264,0.01152,87139.0,87128.0,0.01147736]
[1767055435176,0.01152,87139.0,87129.0,0.01147723]
[1767055436166,0.01152,87139.0,87128.0,0.01147736]
[1767055436513,0.01152,87139.0,87127.0,0.01147749]
[1767055436514,0.01147604,87138.0,87123.0,0.01147802]
[1767055436790,0.02299591,87139.0,87123.0,0.06886808]
[1767055436936,0.01147604,87138.0,87125.0,0.01147776]
[1767055437673,0.02299591,87139.0,87125.0,0.01147776]
[1767055437975,0.01147604,87138.0,87122.0,0.14313]
[1767055438173,0.01147631,87136.0,87122.0,0.15460815]
[1767055438337,0.0107476,87135.0,87122.0,0.15460815]
[1767055438535,0.0107476,87134.0,87122.0,0.15460815]
[1767055438731,0.01147657,87134.0,87122.0,0.14313]
[1767055438929,0.01147683,87132.0,87122.0,0.14313]
[1767055439156,0.0114767,87133.0,87122.0,0.14313]
[1767055439374,0.06885866,87135.0,87122.0,0.14313]
[1767055439375,0.01074655,87132.0,87122.0,0.14313]
[1767055439607,0.01147644,87135.0,87122.0,0.14313]
[1767055439779,0.0107466,87134.0,87125.0,0.000139]
[1767055439965,0.0107466,87133.0,87125.0,0.000139]
[1767055440167,0.0107466,87132.0,87125.0,0.000139]
[1767055440351,0.01147631,87136.0,87125.0,0.000139]
[1767055440556,0.0114767,87133.0,87125.0,0.000139]
[1767055440797,0.01147657,87134.0,87122.0,0.14313]
[1767055440991,0.01074658,87133.0,87122.0,0.14313]
[1767055441175,0.01147657,87134.0,87122.0,0.14313]
[1767055441379,0.01074632,87133.0,87122.0,0.14313]
[1767055441723,0.01147657,87134.0,87122.0,0.14313]
[1767055441867,0.01074632,87133.0,87122.0,0.14313]
[1767055442087,0.06886024,87133.0,87122.0,0.14313]
[1767055442287,0.06886024,87133.0,87118.0,0.0001463]
[1767055442288,0.00041,87122.0,87118.0,0.0001463]
[1767055442489,0.00041,87122.0,87119.0,0.01152]
[1767055442693,0.01147697,87131.0,87119.0,0.01152]
[1767055442910,0.0114771,87130.0,87119.0,0.01152]
[1767055443630,0.52244156,87130.0,87119.0,0.01152]
[1767055443795,0.0114771,87130.0,87119.0,0.01152]
[1767055443997,0.01147697,87131.0,87119.0,0.01152]
[1767055445139,0.0688588,87135.0,87119.0,0.01152]
[1767055445316,0.0688588,87135.0,87119.0,0.02299855]
[1767055445317,0.01074371,87134.0,87119.0,0.02299855]
[1767055445484,0.01074371,87133.0,87120.0,0.01147842]
[1767055445687,0.01147644,87135.0,87121.0,0.01147828]
[1767055445927,0.01074377,87134.0,87121.0,0.01147828]
[1767055446123,0.01074377,87133.0,87121.0,0.01147828]
[1767055446332,0.01147631,87136.0,87122.0,0.01147815]
[1767055446505,0.02222011,87135.0,87121.0,0.01147828]
[1767055446712,0.01074367,87134.0,87119.0,0.02299855]
[1767055446931,0.02222037,87133.0,87119.0,0.02299855]
[1767055447154,0.0114767,87133.0,87119.0,0.02299855]
[1767055447359,0.01147657,87134.0,87120.0,0.01147842]
[1767055447588,0.01074356,87133.0,87120.0,0.01147842]
[1767055447788,0.01147644,87135.0,87120.0,0.01147842]
[1767055447994,0.01074358,87134.0,87121.0,0.01147828]
[1767055448198,0.01074358,87133.0,87120.0,0.01147842]
[1767055448475,0.01147644,87135.0,87121.0,0.01147828]
[1767055448604,0.52236384,87130.0,87121.0,0.01147828]
[1767055449249,0.52236384,87130.0,87120.0,0.01147842]
[1767055449612,0.52236384,87130.0,87121.0,0.01147828]
[1767055450313,0.52236384,87130.0,87119.0,0.02299855]
[1767055450519,0.52236384,87130.0,87120.0,0.01147842]
[1767055450721,0.52236384,87130.0,87119.0,0.02299855]
[1767055451680,0.53384094,87130.0,87119.0,0.01152]
[1767055452017,0.0114767,87133.0,87119.0,0.01152]
[1767055452018,0.01147697,87131.0,87119.0,0.01152]
[1767055452317,0.52236384,87130.0,87119.0,0.01152]
[1767055453269,0.52236384,87130.0,87119.0,0.02299855]
[1767055453476,0.52236384,87130.0,87119.0,0.02124343]
[1767055453621,0.0114767,87133.0,87119.0,0.02124343]
[1767055454022,0.01147657,87134.0,87120.0,0.01147842]
[1767055454333,0.02221874,87133.0,87119.0,0.02124343]
[1767055454520,0.01147683,87132.0,87119.0,0.00976488]
[1767055455013,0.0114767,87133.0,87119.0,0.02124343]
[1767055455165,0.52236384,87130.0,87119.0,0.02124343]
[1767055455865,0.52236384,87130.0,87120.0,0.01147842]
[1767055456106,0.52236384,87130.0,87119.0,0.02124343]
[1767055456703,0.52236384,87130.0,87119.0,0.00976488]
[1767055458893,0.52236384,87130.0,87119.0,0.02124343]
[1767055459248,0.52236384,87130.0,87119.0,0.01941344]
[1767055459637,0.52236384,87130.0,87119.0,0.00866344]
[1767055460918,0.52236384,87130.0,87118.0,0.02314498]
[1767055460919,0.52236384,87130.0,87118.0,0.08053837]
[1767055461252,0.52236384,87130.0,87119.0,0.01147855]
[1767055461837,0.52236384,87130.0,87120.0,0.01147842]
[1767055462199,0.01152,87132.0,87120.0,0.01147842]
[1767055462390,0.01152,87132.0,87120.0,0.52236384]
[1767055462603,0.01152,87132.0,87119.0,0.01147855]
[1767055462794,0.01152,87132.0,87118.0,0.0116663]
[1767055462998,0.01152,87132.0,87121.0,0.01147828]
[1767055463721,0.01152,87132.0,87120.0,0.01147842]
[1767055463876,0.01147657,87134.0,87120.0,0.01147842]
[1767055464080,0.01152,87132.0,87120.0,0.01147842]
[1767055464280,0.01152,87132.0,87121.0,0.01147828]
[1767055464881,0.01152,87132.0,87122.0,0.01147815]
[1767055465063,0.01152,87132.0,87121.0,0.01147828]
[1767055465480,0.01147604,87138.0,87124.0,0.01147789]
[1767055465713,0.01152,87133.0,87124.0,0.05738946]
[1767055465931,0.01152,87133.0,87123.0,0.06886813]
[1767055466151,0.01152,87136.0,87124.0,0.01147789]
[1767055466305,0.01074309,87135.0,87125.0,0.01147776]
[1767055466652,0.01074309,87134.0,87126.0,0.01147763]
[1767055466776,0.01074309,87133.0,87126.0,0.01147763]
[1767055466976,0.01152,87136.0,87126.0,0.01147763]
[1767055467353,0.01074366,87135.0,87126.0,0.01147763]
[1767055467639,0.01074366,87134.0,87126.0,0.01147763]
[1767055467837,0.01074366,87133.0,87126.0,0.01147763]
[1767055468009,0.01152,87136.0,87126.0,0.01147763]
[1767055468216,0.01074411,87135.0,87126.0,0.01147763]
[1767055468415,0.01074411,87134.0,87127.0,0.01147749]
[1767055468618,0.52236384,87140.0,87134.0,0.000139]
[1767055468619,0.01152,87138.0,87134.0,0.000139]
[1767055468817,0.01074477,87137.0,87127.0,0.01147749]
[1767055469032,0.01074477,87136.0,87126.0,0.01147763]
[1767055469234,0.01074477,87135.0,87126.0,0.01147763]
[1767055469397,0.01074477,87134.0,87126.0,0.01147763]
[1767055469599,0.01152,87138.0,87128.0,0.01147736]
[1767055469971,0.01074433,87137.0,87128.0,0.01147736]
[1767055470174,0.01074433,87136.0,87128.0,0.01147736]
[1767055470378,0.01074433,87135.0,87128.0,0.01147736]
[1767055470578,0.01074433,87134.0,87128.0,0.01147736]
[1767055470758,0.01152,87138.0,87127.0,0.01147749]
[1767055470964,0.01074397,87137.0,87128.0,0.01086385]
[1767055471126,0.01074397,87136.0,87127.0,0.01147749]
[1767055471326,0.01074397,87135.0,87127.0,0.01147749]
[1767055471560,0.01152,87138.0,87127.0,0.01147749]
[1767055471727,0.01074374,87137.0,87128.0,0.01147736]
[1767055471928,0.01074374,87136.0,87128.0,0.01147736]
[1767055472169,3.74e-06,87135.0,87127.0,0.01147749]
[1767055472345,0.00852374,87138.0,87127.0,0.01147749]
[1767055474337,0.00852374,87138.0,87128.0,0.01147736]
[1767055475721,0.00852374,87138.0,87127.0,0.01147749]
[1767055477880,0.00852374,87138.0,87129.0,0.01147723]
[1767055478082,0.00852374,87138.0,87130.0,0.0114771]
[1767055478281,0.00852374,87138.0,87129.0,0.01147723]
[1767055478426,0.00852374,87138.0,87128.0,0.01147736]
[1767055478624,0.00852374,87138.0,87127.0,0.01147749]
[1767055478882,0.00852374,87138.0,87128.0,0.01147736]
[1767055479489,0.00852374,87138.0,87130.0,0.0114771]
[1767055479779,0.01152,87139.0,87130.0,0.0114771]
[1767055480333,0.01152,87139.0,87129.0,0.01147723]
[1767055480528,0.01152,87139.0,87130.0,0.0114771]
[1767055480783,0.52236384,87140.0,87130.0,0.0114771]
[1767055480988,0.01152,87139.0,87130.0,0.0114771]
[1767055481217,0.01152,87139.0,87129.0,0.01147723]
[1767055481960,0.01152,87139.0,87128.0,0.01147736]
[1767055482160,0.01152,87139.0,87128.0,0.06886363]
[1767055482361,0.01152,87139.0,87129.0,0.01147723]
[1767055482809,0.01152,87139.0,87130.0,0.0114771]
[1767055483319,0.01152,87139.0,87129.0,0.01147723]
[1767055483667,0.01152,87139.0,87130.0,0.0114771]
[1767055484448,0.01074234,87138.0,87129.0,0.01147723]
[1767055484750,0.01074234,87137.0,87130.0,0.0114771]
[1767055484994,0.01074234,87136.0,87130.0,0.0114771]
[1767055485196,0.52236384,87140.0,87132.0,0.01147683]
[1767055485408,0.02226246,87139.0,87130.0,0.0114771]
[1767055485531,0.01074246,87138.0,87131.0,0.01147697]
[1767055485731,0.01074246,87137.0,87131.0,0.01147697]
[1767055485954,0.01152,87143.0,87135.0,0.01147644]
[1767055486193,0.02299473,87148.0,87133.0,0.0114767]
[1767055486370,0.01147486,87147.0,87131.0,0.01147697]
[1767055486581,0.01147486,87147.0,87132.0,0.01147683]
[1767055486781,0.01147499,87146.0,87132.0,0.01147683]
[1767055487191,0.01147499,87146.0,87131.0,0.01147697]
[1767055487360,0.01147499,87146.0,87132.0,0.01147683]
[1767055488783,0.01147486,87147.0,87133.0,0.0114767]
[1767055488977,0.52236384,87143.0,87133.0,0.0114767]
[1767055489387,0.52236384,87143.0,87134.0,0.01147657]
[1767055489589,0.52236384,87143.0,87133.0,0.0114767]
[1767055490009,0.52236384,87143.0,87131.0,0.01147697]
[1767055490651,0.52236384,87143.0,87133.0,0.0114767]
[1767055491062,0.52236384,87143.0,87132.0,0.01147683]
[1767055491201,0.52236384,87143.0,87133.0,0.0114767]
[1767055491402,0.52236384,87143.0,87134.0,0.01147657]
[1767055491898,0.52236384,87143.0,87136.0,0.01147631]
[1767055492267,0.01152,87148.0,87135.0,0.01147644]
[1767055493261,0.01152,87148.0,87136.0,0.01147631]
[1767055493485,0.01152,87148.0,87135.0,0.01147644]
[1767055494677,0.01152,87148.0,87133.0,0.0114767]
[1767055494900,0.01152,87148.0,87135.0,0.01147644]
[1767055495485,0.02299473,87148.0,87134.0,0.01147657]
[1767055495680,0.02299473,87148.0,87135.0,0.01147644]
[1767055495971,0.01147486,87147.0,87133.0,0.0114767]
[1767055496437,0.01152,87148.0,87135.0,0.01147644]
[1767055496595,0.02299473,87148.0,87134.0,0.01147657]
[1767055497003,0.02299473,87148.0,87135.0,0.01147644]
[1767055497338,0.02299473,87148.0,87134.0,0.01147657]
[1767055497339,0.01147486,87147.0,87134.0,0.01147657]
[1767055497548,0.01147486,87147.0,87133.0,0.0114767]
[1767055497549,0.02299473,87148.0,87133.0,0.0114767]
[1767055497685,0.52236384,87143.0,87134.0,0.01147657]
[1767055497891,0.01074278,87142.0,87133.0,0.0114767]
[1767055498219,0.01074278,87141.0,87133.0,0.0114767]
[1767055498381,0.01147499,87146.0,87133.0,0.0114767]
[1767055498586,0.01074288,87145.0,87133.0,0.0114767]
[1767055498838,0.01074288,87144.0,87133.0,0.0114767]
[1767055499038,0.01074288,87143.0,87133.0,0.0114767]
[1767055499245,0.01074288,87142.0,87133.0,0.0114767]
[1767055499407,0.01074288,87141.0,87133.0,0.0114767]
[1767055499608,0.52236384,87143.0,87132.0,0.01147683]
[1767055499863,0.01074272,87142.0,87132.0,0.01147683]
[1767055500073,0.01074272,87141.0,87133.0,0.0114767]
[1767055500277,0.01152,87148.0,87133.0,0.0114767]
[1767055500278,0.01152,87148.0,87134.0,0.01147657]
[1767055500476,0.01074284,87147.0,87134.0,0.01147657]
[1767055500654,0.01074284,87146.0,87134.0,0.0688588]
[1767055500854,0.01152,87148.0,87134.0,0.0688588]
[1767055500855,0.01074284,87145.0,87134.0,0.0688588]
[1767055501023,0.01074284,87144.0,87139.0,0.01147591]
[1767055501238,0.0001463,87149.0,87143.0,0.01147539]